bitfinex-derivatives/quotes_ETHF0:USTF0_20250210
["timestamp","ask_amount","ask_price","bid_price","bid_amount"]
[1739228970756,0.00564355,2654.3,2654.2,3.2078]
[1739228971361,0.00564355,2654.3,2653.9,3.2078]
[1739228971659,0.00564355,2654.3,2654.0,0.5832]
[1739228971859,0.00564355,2654.3,2654.1,0.5932]
[1739228975056,0.00564355,2654.3,2654.2,3.2078]
[1739228975758,0.00564355,2654.3,2654.2,3.7714]
[1739228977855,16.1219892,2655.0,2654.2,9.7714]
[1739228978056,16.1219892,2655.0,2654.5,3.2078]
[1739228979155,16.1276435,2655.0,2654.5,3.2078]
[1739228979660,0.0056543,2655.0,2654.5,3.2078]
[1739228979863,0.0056543,2655.0,2654.8,3.2078]
[1739228980056,0.0056543,2655.0,2654.9,0.5565]
[1739228981265,0.0056543,2655.0,2654.9,1.1112]
[1739228982357,0.0056543,2655.0,2654.9,1.6856]
[1739228987368,0.0056543,2655.0,2654.9,4.8934]
[1739228991268,0.0056543,2655.0,2654.9,4.319]
[1739229001575,0.0056543,2655.0,2654.9,3.2078]
[1739229004872,0.0056543,2655.0,2654.2,3.2078]
[1739229005063,0.0056543,2655.0,2654.3,1.664]
[1739229005268,0.0056543,2655.0,2654.5,3.2078]
[1739229005475,0.6016543,2655.0,2654.5,3.2078]
[1739229006272,3.8094543,2655.0,2654.3,1.664]
[1739229006680,3.8094543,2655.0,2654.5,3.2078]
[1739229007175,0.6016543,2655.0,2654.5,3.2078]
[1739229007967,0.90266974,2655.0,2654.5,3.2078]
[1739229008774,4.11046974,2655.0,2654.5,3.2078]
[1739229012179,4.20892417,2654.9,2654.5,3.2078]
[1739229012578,0.5682,2654.8,2654.5,3.2078]
[1739229012779,0.6097,2654.7,2654.5,3.2078]
[1739229021388,0.6016543,2655.0,2654.5,3.2078]
[1739229021586,0.6016543,2655.0,2654.6,1.1871]
[1739229022676,0.0056543,2655.0,2654.6,1.1871]
[1739229022880,0.0056543,2655.0,2654.6,1.7835]
[1739229024888,0.0056543,2655.0,2654.9,3.2078]
[1739229027683,1.654,2656.2,2654.9,3.2078]
[1739229027684,0.5502,2655.8,2654.9,3.2078]
[1739229027879,3.2078,2656.0,2655.3,3.2078]
[1739229028094,3.2078,2656.0,2655.4,1.1956]
[1739229028794,3.2134543,2656.0,2655.6,3.2078]
[1739229029087,0.0056543,2656.0,2655.9,3.2078]
[1739229030392,1.708,2656.8,2655.9,3.2078]
[1739229030592,1.708,2656.8,2656.2,3.2078]
[1739229031688,0.0056543,2656.5,2656.2,3.2078]
[1739229032987,0.0056543,2656.5,2656.2,3.8078]
[1739229033188,0.0056543,2656.5,2656.2,4.3869]
[1739229033595,0.0056543,2656.5,2656.3,0.5569]
[1739229041391,0.0056543,2656.5,2656.3,2.2129]
[1739229042599,16.1219892,2658.0,2656.7,0.75261]
[1739229042898,1.1454,2657.8,2657.5,3.2078]
[1739229043600,1.1454,2657.8,2657.6,0.5879]
[1739229044100,17.61009373,2657.9,2657.6,0.5879]
[1739229044400,0.0056543,2657.9,2657.6,0.5879]
[1739229045398,0.0056543,2657.9,2657.8,3.2078]
[1739229048803,0.0056543,2657.9,2657.6,0.5879]
[1739229049696,0.0056543,2657.9,2657.8,3.2078]
[1739229051797,0.0056543,2657.9,2657.6,0.5879]
[1739229052097,0.0056543,2657.9,2657.5,3.2078]
[1739229052301,0.75239,2657.5,2656.5,3.2078]
[1739229052492,0.75239,2657.5,2655.8,3.83486]
[1739229052493,1.8081,2657.4,2656.8,3.2078]
[1739229053600,1.8081,2657.4,2657.1,3.2078]
[1739229058001,4.96542331,2657.3,2656.8,3.21344366]
[1739229058201,4.21296331,2657.3,2656.8,3.21344366]
[1739229058695,4.96541331,2657.3,2656.8,0.00564366]
[1739229059005,4.96542331,2657.3,2656.8,0.00564366]
[1739229059405,3.2078,2657.1,2656.8,0.00564366]
[1739229059801,4.73814233,2657.0,2656.8,0.00564366]
[1739229060003,1.1699,2656.9,2656.8,0.00564366]
[1739229060305,1.739,2656.9,2656.8,0.00564366]
[1739229060505,2.49156,2656.9,2656.8,0.00564366]
[1739229061005,1.739,2656.9,2656.8,0.00564366]
[1739229062409,2.49156,2656.9,2656.8,0.00564366]
[1739229062603,1.739,2656.9,2656.8,0.00564366]
[1739229063403,1.1699,2656.9,2656.8,0.00564366]
[1739229063604,3.2078,2657.1,2656.8,0.00564366]
[1739229063802,0.5615,2657.4,2656.8,0.00564366]
[1739229064211,4.02239426,2657.3,2656.8,0.00564366]
[1739229066316,3.96035,2657.0,2656.8,0.00564366]
[1739229066504,0.7526,2656.8,2656.1,1.118]
[1739229067010,5.7899094,2656.9,2656.1,1.118]
[1739229067211,7.2322094,2656.7,2656.0,3.2078]
[1739229067417,0.75269,2656.5,2655.7,1.1159]
[1739229067612,4.3265,2656.4,2656.1,0.00564366]
[1739229067808,9.02678602,2656.4,2656.1,0.00564366]
[1739229068004,5.63566366,2656.4,2656.1,0.00564366]
[1739229068204,3.21344366,2656.4,2656.1,0.00564366]
[1739229068410,0.00564366,2656.4,2656.1,3.21344366]
[1739229068611,0.00564366,2656.4,2656.2,1.1373]
[1739229069917,0.00564366,2656.4,2656.1,0.00564366]
[1739229070614,0.00564366,2656.4,2656.1,3.21344366]
[1739229071011,0.00564366,2656.4,2656.2,0.589]
[1739229080821,1.1139,2657.4,2656.2,1.34175]
[1739229081016,1.1139,2657.4,2656.8,3.2078]
[1739229081215,1.1139,2657.4,2656.9,0.5728]
[1739229081916,1.11954366,2657.4,2656.9,0.5728]
[1739229082323,0.00564366,2657.4,2657.1,3.2078]
[1739229083813,0.00564366,2657.4,2657.2,0.5926]
[1739229084419,0.00564366,2657.4,2656.9,0.5728]
[1739229084613,0.58004366,2657.4,2656.9,1.1654]
[1739229085724,0.5974,2657.3,2656.9,1.1654]
[1739229085925,3.2078,2657.2,2656.5,1.666]
[1739229086124,3.7792,2657.2,2656.5,1.666]
[1739229086320,3.7792,2657.2,2656.4,3.2078]
[1739229086533,7.42164572,2657.1,2656.2,1.1149]
[1739229086718,0.75255,2657.0,2656.2,1.1149]
[1739229086919,7.42164572,2657.1,2656.2,1.1149]
[1739229087232,4.04724928,2656.9,2656.2,1.1149]
[1739229087526,4.04724928,2657.0,2656.2,1.1149]
[1739229087824,3.2078,2657.1,2656.4,3.2078]
[1739229090019,0.5714,2657.2,2656.4,3.2078]
[1739229092125,0.5714,2657.2,2656.7,3.2078]
[1739229092323,0.5714,2657.2,2656.8,1.1694]
[1739229092921,0.5714,2657.2,2656.7,3.2078]
[1739229094420,1.32388,2657.2,2656.7,3.2078]
[1739229095018,3.2078,2657.1,2656.4,4.3772]
[1739229095219,0.5714,2657.2,2656.4,4.3772]
[1739229095422,4.5317,2657.2,2656.4,4.3772]
[1739229096326,4.53169,2657.2,2656.4,4.3772]
[1739229097231,3.7792,2657.2,2656.4,4.3772]
[1739229097831,4.53169,2657.2,2656.4,4.3772]
[1739229098531,3.7792,2657.2,2656.4,4.3772]
[1739229099829,4.53169,2657.2,2656.4,4.3772]
[1739229100933,4.53168,2657.2,2656.4,4.3772]
[1739229101533,3.7792,2657.2,2656.4,4.3772]
[1739229104737,0.5714,2657.2,2656.4,4.3772]
[1739229105031,0.5714,2657.2,2656.8,3.2078]
[1739229105240,0.5714,2657.2,2656.9,0.5614]
[1739229107542,1.3239,2657.2,2656.9,0.5614]
[1739229107934,0.5714,2657.2,2656.9,0.5614]
[1739229109933,16.1219892,2657.1,2656.9,0.5614]
[1739229112040,16.1219892,2657.1,2656.9,1.1408]
[1739229117635,16.1219892,2657.1,2656.9,1.7051]
[1739229120943,16.1219892,2657.1,2656.9,1.1408]
[1739229121649,0.75254,2657.0,2656.9,0.5614]
[1739229121845,16.8745192,2657.1,2656.9,0.5614]
[1739229122742,16.8744992,2657.1,2656.9,0.5614]
[1739229123045,16.1219892,2657.1,2656.9,0.5614]
[1739229123246,16.8745092,2657.1,2656.9,0.5614]
[1739229124635,16.1219892,2657.1,2656.9,0.5614]
[1739229124842,0.5944,2657.0,2656.6,0.5528]
[1739229125050,0.5959,2656.9,2656.6,0.5528]
[1739229125347,0.5926,2656.8,2656.6,0.5528]
[1739229126941,16.1219892,2657.1,2656.6,0.5528]
[1739229127147,16.1219892,2657.1,2656.7,0.5537]
[1739229128849,16.1219892,2657.1,2656.7,1.1279]
[1739229130249,16.1219892,2657.1,2656.8,3.2078]
[1739229130751,16.1219892,2657.1,2656.8,4.8578]
[1739229131653,16.1219892,2657.1,2656.8,11.61037]
[1739229131949,16.1219892,2657.1,2656.8,10.8578]
[1739229132145,16.1219892,2657.1,2656.9,40.8]
[1739229134443,0.00564366,2657.4,2656.9,40.8]
[1739229134751,0.00564366,2657.4,2657.1,3.2078]
[1739229134953,0.00564366,2657.4,2657.2,0.5667]
[1739229135148,0.00564366,2657.4,2657.2,1.157]
[1739229136149,1.21784366,2657.4,2657.2,1.157]
[1739229136354,0.00564366,2657.4,2657.2,1.157]
[1739229136656,0.00564366,2657.4,2657.2,1.7103]
[1739229139753,16.1219892,2657.6,2657.3,0.75244]
[1739229139947,16.1219892,2657.6,2657.5,3.2078]
[1739229140253,16.1219892,2657.6,2657.5,4.8558]
[1739229141053,0.00564366,2657.8,2657.5,4.8558]
[1739229141761,0.00564366,2657.8,2657.5,3.2078]
[1739229143160,0.00564366,2657.8,2657.4,1.649]
[1739229143362,1.69254366,2657.8,2657.4,1.649]
[1739229145951,1.69254366,2657.8,2657.5,3.2078]
[1739229146151,1.12574366,2657.8,2657.5,3.2078]
[1739229146359,0.00564366,2657.8,2657.5,3.2078]
[1739229149063,0.00564366,2657.8,2657.5,3.96018]
[1739229149266,0.00564366,2657.8,2657.5,3.2078]
[1739229149563,0.00564366,2657.8,2657.6,40.8]
[1739229149751,0.00564366,2657.8,2657.7,0.6013]
[1739229149956,0.00564366,2657.8,2657.7,1.1775]
[1739229159970,0.00564366,2657.8,2657.7,2.8255]
[1739229165477,0.00564366,2657.8,2657.5,3.2078]
[1739229165778,0.00564366,2657.8,2657.5,4.8558]
[1739229166568,0.00564366,2657.8,2657.5,3.2078]
[1739229167579,0.00564366,2657.8,2657.4,0.00564366]
[1739229168973,0.00564366,2657.8,2657.5,3.2078]
[1739229170980,0.00564366,2657.8,2657.6,1.1796]
[1739229171577,0.00564366,2657.8,2657.6,41.9796]
[1739229172384,0.00564366,2657.8,2657.6,1.1796]
[1739229175886,0.00564366,2657.8,2657.6,2.8276]
[1739229176593,0.00564366,2657.8,2657.6,1.1796]
[1739229179884,0.00564366,2657.8,2657.6,0.5833]
[1739229180293,0.00564366,2657.8,2657.5,3.2078]
[1739229180490,0.00564366,2657.8,2657.4,1.65364366]
[1739229180788,0.00564366,2657.8,2657.4,4.86144366]
[1739229182806,0.00564366,2657.8,2657.4,0.00564366]
[1739229183389,0.00564366,2657.8,2657.4,3.21344366]
[1739229184294,0.00564366,2657.8,2657.4,0.00564366]
[1739229184492,3.21344366,2657.8,2657.4,0.00564366]
[1739229184697,1.7694,2657.7,2657.4,0.00564366]
[1739229188800,0.75239,2657.5,2657.4,0.00564366]
[1739229189097,0.75239,2657.5,2657.1,3.2078]
[1739229189098,3.9602,2657.5,2657.1,3.2078]
[1739229191001,3.2078,2657.5,2657.1,3.2078]
[1739229191502,3.9602,2657.5,2657.1,3.2078]
[1739229191705,3.50600533,2657.5,2657.1,3.2078]
[1739229192001,4.25840533,2657.5,2657.1,3.2078]
[1739229192191,6.57892978,2657.5,2657.1,3.2078]
[1739229192391,5.82652978,2657.5,2657.1,3.2078]
[1739229192598,5.82652978,2657.5,2657.0,0.00564366]
[1739229192903,6.57893978,2657.5,2657.0,0.00564366]
[1739229193492,5.82652978,2657.5,2657.0,0.00564366]
[1739229193698,0.75245,2657.3,2657.0,0.00564366]
[1739229193898,1.1188,2657.2,2657.0,0.00564366]
[1739229194197,4.9065,2657.2,2657.0,0.00564366]
[1739229194398,5.65899,2657.2,2657.0,0.00564366]
[1739229194604,5.65898,2657.2,2657.0,0.00564366]
[1739229195300,7.22702445,2657.2,2657.0,0.00564366]
[1739229195901,4.01922445,2657.2,2657.0,0.00564366]
[1739229199506,1.6987,2657.2,2657.0,0.00564366]
[1739229201699,4.01922445,2657.2,2657.0,0.00564366]
[1739229202800,4.77171445,2657.2,2657.0,0.00564366]
[1739229203004,4.01922445,2657.2,2657.0,0.00564366]
[1739229203607,4.77171445,2657.2,2657.0,0.00564366]
[1739229203803,4.01922445,2657.2,2657.0,0.00564366]
[1739229204704,4.77173445,2657.2,2657.0,0.00564366]
[1739229205705,4.77171445,2657.2,2657.0,0.00564366]
[1739229206305,4.01922445,2657.2,2657.0,0.00564366]
[1739229207506,1.6987,2657.2,2657.0,0.00564366]
[1739229207701,0.30278334,2657.4,2657.0,0.00564366]
[1739229207908,2.92292445,2657.5,2657.0,0.00564366]
[1739229208905,3.67533445,2657.5,2657.0,0.00564366]
[1739229209113,3.67532445,2657.5,2657.0,0.00564366]
[1739229209417,3.23087041,2657.5,2657.0,0.00564366]
[1739229209606,3.7823,2657.6,2657.0,3.21344366]
[1739229209805,0.5745,2657.6,2657.1,1.6733]
[1739229210310,16.1219892,2657.7,2657.3,3.2078]
[1739229211012,2.32616811,2657.8,2657.3,3.2078]
[1739229211210,2.32616811,2657.8,2657.1,1.6733]
[1739229212505,3.07848811,2657.8,2657.1,1.6733]
[1739229213811,3.07850811,2657.8,2657.1,1.6733]
[1739229214014,3.2078,2657.6,2657.1,1.6733]
[1739229214211,3.2078,2657.6,2657.1,1.1194]
[1739229214712,2.32052445,2657.2,2657.1,0.5703]
[1739229214918,3.46582445,2657.5,2657.1,0.5703]
[1739229215511,6.67362445,2657.5,2657.1,0.5703]
[1739229217019,7.42604445,2657.5,2657.1,0.5703]
[1739229218506,6.67362445,2657.5,2657.1,0.5703]
[1739229219412,3.46582445,2657.5,2657.1,0.5703]
[1739229219813,2.87032445,2657.5,2657.1,0.5703]
[1739229220616,0.5792,2657.7,2657.3,3.2078]
[1739229220813,0.5792,2657.7,2657.4,0.585]
[1739229221314,5.53396811,2657.8,2657.5,0.5907]
[1739229224216,3.21344366,2657.8,2657.5,0.5907]
[1739229224421,3.21344366,2657.8,2657.6,0.5884]
[1739229224620,0.00564366,2657.8,2657.6,3.7962]
[1739229231937,0.00564366,2657.8,2657.6,5.4442]
[1739229234946,0.00564366,2657.8,2657.6,14.51708445]
[1739229235241,0.00564366,2657.8,2657.6,13.76472445]
[1739229235641,0.00564366,2657.8,2657.6,7.76472445]
[1739229235947,0.00564366,2657.8,2657.6,13.76472445]
[1739229236641,0.00564366,2657.8,2657.7,40.8]
[1739229237041,0.00564366,2657.8,2657.7,46.8]
[1739229238246,3.7841,2658.8,2657.7,46.8]
[1739229238449,3.7841,2658.8,2658.2,3.2078]
[1739229238749,3.7841,2658.8,2658.3,0.5566]
[1739229239350,3.78974366,2658.8,2658.3,0.5566]
[1739229242250,3.78974366,2658.8,2658.2,3.2078]
[1739229242455,4.54178366,2658.8,2658.2,3.2078]
[1739229242650,3.78974366,2658.8,2658.2,3.2078]
[1739229242843,4.54178366,2658.8,2658.2,3.2078]
[1739229243346,3.78974366,2658.8,2658.2,3.2078]
[1739229246552,4.54177366,2658.8,2658.2,3.2078]
[1739229247048,3.78974366,2658.8,2658.2,3.2078]
[1739229247449,4.54178366,2658.8,2658.2,3.2078]
[1739229247751,3.78974366,2658.8,2658.2,3.2078]
[1739229249251,6.72974366,2658.8,2658.2,3.2078]
[1739229250051,2.32052445,2658.7,2658.2,3.2078]
[1739229250256,0.75215,2658.4,2658.2,3.2078]
[1739229250456,1.7534,2658.3,2657.7,2.8103]
[1739229250651,1.7534,2658.3,2657.9,3.2078]
[1739229250853,1.7534,2658.3,2657.7,2.8103]
[1739229251350,1.7534,2658.3,2657.9,3.2078]
[1739229252949,0.5757,2658.3,2657.9,3.2078]
[1739229256261,3.2078,2658.2,2657.5,3.2078]
[1739229256462,2.32052445,2658.1,2657.5,3.2078]
[1739229256661,0.5945,2658.0,2657.5,3.2078]
[1739229262462,0.5945,2658.0,2657.4,1.1516]
[1739229262463,0.5757,2658.3,2657.8,3.2078]
[1739229262769,0.5757,2658.3,2657.9,1.1194]
[1739229262959,3.8022,2658.5,2657.9,1.1194]
[1739229265063,0.5904,2658.6,2658.2,3.2078]
[1739229265255,2.32052445,2658.7,2658.3,0.5669]
[1739229265461,1.706,2658.5,2658.3,0.5669]
[1739229265764,1.1386,2658.5,2658.3,0.5669]
[1739229265960,0.5674,2658.7,2658.3,0.5669]
[1739229266163,0.5674,2658.7,2658.4,0.5746]
[1739229266362,4.35204366,2658.8,2658.4,0.5746]
[1739229267562,2.32052445,2658.7,2658.3,0.57254366]
[1739229267967,0.5674,2658.6,2658.3,0.57254366]
[1739229271064,4.35204366,2658.8,2658.3,0.57254366]
[1739229271269,0.00564366,2658.8,2658.3,0.57254366]
[1739229272068,0.00564366,2658.8,2658.6,3.2078]
[1739229272269,0.00564366,2658.8,2658.7,1.1763]
[1739229277471,0.00564366,2658.8,2658.7,1.7632]
[1739229284777,0.00564366,2658.8,2658.7,1.1763]
[1739229285769,0.00564366,2658.8,2658.6,3.2078]
[1739229286274,0.58044366,2658.8,2658.6,3.2078]
[1739229286473,0.58044366,2658.8,2658.3,0.57794366]
[1739229286664,0.5842,2658.7,2658.3,0.57794366]
[1739229287271,0.5842,2658.7,2658.4,0.5787]
[1739229287464,0.5842,2658.7,2658.4,3.7865]
[1739229287665,0.58044366,2658.8,2658.4,3.7865]
[1739229288071,0.5842,2658.7,2658.4,3.7865]
[1739229290168,2.90472445,2658.7,2658.4,3.2078]
[1739229291269,2.90472445,2658.7,2658.3,0.00564366]
[1739229291867,3.21075738,2658.7,2658.3,0.00564366]
[1739229292270,3.2078,2658.6,2658.3,0.00564366]
[1739229294779,3.21075738,2658.7,2658.3,0.00564366]
[1739229294975,2.90472445,2658.7,2658.3,0.00564366]
[1739229299984,0.5842,2658.7,2658.3,0.00564366]
[1739229300286,0.00564366,2658.8,2658.3,3.21344366]
[1739229300584,0.00564366,2658.8,2658.4,0.608]
[1739229300879,0.00564366,2658.8,2658.5,0.5689]
[1739229301473,0.00564366,2658.8,2658.6,3.2078]
[1739229303577,16.07997405,2659.1,2658.6,3.2078]
[1739229303779,16.07997405,2659.1,2659.0,5.52832445]
[1739229304078,16.07997405,2659.1,2659.0,6.28029445]
[1739229304285,16.07997405,2659.1,2659.0,52.32832445]
[1739229304681,16.07997405,2659.1,2659.0,53.46832445]
[1739229304882,0.00564366,2659.3,2659.0,53.46832445]
[1739229305085,0.00564366,2659.3,2659.0,47.46832445]
[1739229306880,0.00564366,2659.3,2659.1,0.5895]
[1739229307081,0.00564366,2659.3,2659.2,1.646]
[1739229307488,0.00564366,2659.3,2659.1,0.5895]
[1739229309391,0.00564366,2659.3,2659.2,0.5671]
[1739229310796,1.7718,2660.2,2659.2,0.5671]
[1739229310991,1.7718,2660.2,2659.6,3.2078]
[1739229311295,1.1749,2660.2,2659.7,0.5827]
[1739229311596,2.25465,2661.4,2659.7,0.5827]
[1739229311597,0.5532,2660.5,2660.0,3.2078]
[1739229311992,0.55694091,2660.5,2660.0,3.21344366]
[1739229312498,0.00374091,2660.5,2660.0,3.21344366]
[1739229314092,0.00374091,2660.5,2660.1,0.5953]
[1739229320900,0.00374091,2660.5,2660.4,3.2078]
[1739229321104,0.00374091,2660.5,2660.4,4.8528]
[1739229329107,0.00374091,2660.5,2660.1,3.8031]
[1739229329403,0.00374091,2660.5,2660.1,5.4481]
[1739229330393,0.00374091,2660.5,2660.1,3.8031]
[1739229333410,0.00374091,2660.5,2660.1,3.2078]
[1739229334301,0.00374091,2660.5,2660.0,0.00564366]
[1739229334609,3.2078,2660.4,2660.0,0.00564366]
[1739229334806,0.5922,2660.3,2660.0,0.00564366]
[1739229335110,0.5767,2660.2,2660.0,0.00564366]
[1739229337898,0.5922,2660.3,2660.0,0.00564366]
[1739229338705,3.2078,2660.4,2660.0,0.00564366]
[1739229340714,0.5933,2660.3,2660.0,0.00564366]
[1739229341811,2.91382445,2660.3,2660.0,0.00564366]
[1739229343114,3.66543445,2660.3,2660.0,0.00564366]
[1739229343413,2.91382445,2660.3,2660.0,0.00564366]
[1739229343807,0.5933,2660.3,2660.0,0.00564366]
[1739229346813,3.2078,2660.4,2660.0,0.00564366]
[1739229347016,0.57604091,2660.5,2660.0,3.21344366]
[1739229347216,0.57604091,2660.5,2660.1,1.2091]
[1739229348504,0.00374091,2660.5,2660.3,3.2078]
[1739229352219,0.00407742,2660.4,2660.3,3.2078]
[1739229352916,0.00407742,2660.4,2660.2,1.645]
[1739229354220,0.00407742,2660.4,2660.3,3.2078]
[1739229362130,0.00407742,2660.4,2660.1,1.2091]
[1739229362313,0.00407742,2660.4,2660.1,2.8541]
[1739229364825,0.00407742,2660.4,2660.3,3.2078]
[1739229365429,0.00407742,2660.4,2660.3,44.0078]
[1739229365921,0.00407742,2660.4,2660.3,3.9594]
[1739229366228,0.00374091,2660.5,2660.4,0.75158]
[1739229366432,1.1707,2661.4,2660.3,50.0078]
[1739229366623,1.1707,2661.4,2661.1,3.2078]
[1739229366818,1.1707,2661.4,2661.2,0.5512]
[1739229367131,0.5845,2661.4,2661.2,0.5512]
[1739229370728,0.5845,2661.4,2660.9,0.5817]
[1739229370929,0.5655,2661.3,2660.9,1.1771]
[1739229372129,0.5655,2661.3,2661.0,3.2078]
[1739229372334,0.5862,2661.7,2661.0,3.2078]
[1739229372527,1.1702,2661.6,2661.0,3.2078]
[1739229375834,1.1702,2661.6,2661.3,3.2078]
[1739229376036,1.1702,2661.6,2661.4,1.1936]
[1739229376236,1.1702,2661.6,2661.4,0.5861]
[1739229377836,1.1702,2661.6,2661.2,0.6065]
[1739229378042,3.2078,2661.5,2660.9,2.2505]
[1739229379535,3.2078,2661.5,2660.9,0.6065]
[1739229379846,4.22351269,2661.4,2660.8,3.2078]
[1739229380044,3.2078,2661.2,2660.6,1.644]
[1739229380237,1.1798,2661.1,2660.6,1.644]
[1739229380438,1.7779,2661.1,2660.6,1.644]
[1739229380639,2.52929,2661.1,2660.6,1.644]
[1739229380939,3.2078,2660.9,2660.6,1.644]
[1739229381433,3.2078,2660.9,2660.6,2.2302]
[1739229382447,3.2078,2660.9,2660.5,4.3915]
[1739229382832,1.7814,2660.8,2660.5,4.3915]
[1739229383151,1.1932,2660.8,2660.5,4.3915]
[1739229384533,2.61947344,2661.5,2660.5,4.3915]
[1739229384843,1.7301,2661.4,2660.8,3.2078]
[1739229385042,1.7301,2661.4,2660.9,0.5836]
[1739229385547,1.7301,2661.4,2661.0,0.5617]
[1739229385741,1.1222,2661.4,2661.0,0.5617]
[1739229385940,3.2078,2661.6,2661.0,0.5617]
[1739229386943,1.7301,2661.7,2661.1,3.2078]
[1739229388344,1.7301,2661.7,2661.1,4.8518]
[1739229388544,0.5732,2661.7,2661.4,3.2078]
[1739229388741,0.5732,2661.7,2661.5,1.1368]
[1739229389243,3.2078,2661.9,2661.5,1.1368]
[1739229389746,0.554,2662.0,2661.5,1.1368]
[1739229390043,0.3764,2662.1,2661.5,1.1368]
[1739229390243,0.3764,2662.1,2661.5,1.6925]
[1739229390941,0.3764,2662.1,2661.5,1.1368]
[1739229392542,0.3764,2662.1,2661.6,2.32052445]
[1739229394649,0.3764,2662.1,2661.5,1.1368]
[1739229395347,3.2078,2661.9,2661.5,1.1368]
[1739229395546,1.1765,2661.8,2661.5,1.1368]
[1739229395849,1.7718,2661.8,2661.5,0.5805]
[1739229396043,3.2078,2661.9,2661.5,0.5805]
[1739229396639,0.5977,2661.8,2661.5,0.5805]
[1739229397743,1.1773,2661.7,2661.5,0.5805]
[1739229398245,1.1773,2661.7,2661.4,0.5881]
[1739229400747,3.2078,2661.6,2661.3,0.00564366]
[1739229408258,0.5977,2661.8,2661.3,3.21344366]
[1739229408457,0.5977,2661.8,2661.4,0.5832]
[1739229410559,1.1513,2662.0,2661.4,0.5832]
[1739229410753,3.7673,2661.9,2661.4,0.5832]
[1739229410954,3.07171445,2661.8,2661.3,0.00564366]
[1739229411255,2.32052445,2661.8,2661.3,0.00564366]
[1739229412750,3.7673,2661.9,2661.3,0.00564366]
[1739229417047,3.7673,2661.9,2661.3,3.21344366]
[1739229419854,4.51847,2661.9,2661.3,0.00564366]
[1739229420157,3.2078,2661.6,2661.3,0.00564366]
[1739229420360,1.1874,2661.5,2661.3,0.00564366]
[1739229421056,0.6076,2661.4,2661.3,0.00564366]
[1739229435270,1.35889,2661.4,2661.3,0.00564366]
[1739229436071,0.6076,2661.4,2661.3,0.00564366]
[1739229438162,0.6076,2661.4,2661.3,0.58344366]
[1739229440373,0.6076,2661.4,2661.3,0.00564366]
[1739229445079,2.94,2661.7,2661.3,0.00564366]
[1739229445276,0.5799,2661.9,2661.3,0.00564366]
[1739229448873,0.5799,2661.9,2661.4,3.2078]
[1739229449078,0.5799,2661.9,2661.5,0.584]
[1739229449476,0.5799,2661.9,2661.6,0.6041]
[1739229449779,0.5915,2662.1,2661.7,3.2078]
[1739229449971,3.2078,2662.2,2661.7,3.2078]
[1739229453680,0.5974,2662.1,2661.6,0.6041]
[1739229455988,2.91792445,2662.1,2661.6,0.6041]
[1739229456186,2.91792445,2662.1,2661.5,3.2078]
[1739229456382,3.2078,2661.9,2661.4,2.2132]
[1739229456587,0.5833,2661.8,2661.4,5.421]
[1739229456790,1.1455,2661.8,2661.4,5.421]
[1739229457087,1.1455,2661.8,2661.4,3.778]
[1739229470111,0.90031041,2662.1,2661.4,3.778]
[1739229470313,2.08041041,2662.1,2661.4,3.778]
[1739229471314,1.7775,2662.1,2661.4,3.778]
[1739229480521,4.25766916,2662.0,2661.4,3.778]
[1739229482613,7.46546916,2662.0,2661.4,3.778]
[1739229484518,8.21660916,2662.0,2661.4,3.778]
[1739229485716,8.21659916,2662.0,2661.4,3.778]
[1739229487322,7.46546916,2662.0,2661.4,3.778]
[1739229487823,3.2078,2662.0,2661.4,3.778]
[1739229488614,3.2078,2662.0,2661.5,0.5945]
[1739229488814,3.2078,2662.0,2661.6,0.5547]
[1739229492125,3.2078,2662.0,2661.5,0.5945]
[1739229492315,3.95893,2662.0,2661.5,0.5945]
[1739229493422,3.2078,2662.0,2661.5,0.5945]
[1739229493726,3.95893,2662.0,2661.5,0.5945]
[1739229494131,3.2078,2662.0,2661.5,0.5945]
[1739229495427,3.95892,2662.0,2661.5,0.5945]
[1739229495920,3.2078,2662.0,2661.5,0.5945]
[1739229497431,3.2078,2662.0,2661.5,1.1602]
[1739229498729,3.2078,2662.0,2661.5,0.5945]
[1739229499227,3.2078,2662.0,2661.4,0.5702]
[1739229499526,3.65525,2662.1,2661.3,0.00564366]
[1739229499527,3.2078,2661.7,2661.3,0.00564366]
[1739229499731,1.7279,2661.6,2661.3,0.00564366]
[1739229499932,5.937634,2661.6,2661.3,0.00564366]
[1739229500329,4.786834,2661.6,2661.3,0.00564366]
[1739229500527,0.5771,2661.6,2661.3,0.00564366]
[1739229501429,0.5783,2661.9,2661.3,0.00564366]
[1739229508130,3.2078,2661.7,2661.3,0.00564366]
[1739229508530,1.2122,2661.6,2661.3,0.00564366]
[1739229511031,0.5493,2661.5,2661.3,0.00564366]
[1739229513335,1.2122,2661.6,2661.4,3.2078]
[1739229513535,0.6042,2661.6,2661.4,3.2078]
[1739229518938,0.6042,2661.6,2661.5,0.596]
[1739229522739,0.6042,2661.6,2661.3,0.00564366]
[1739229523053,1.1109,2661.5,2661.3,0.00564366]
[1739229532451,3.2078,2661.4,2661.3,0.00564366]
[1739229533062,3.95909,2661.4,2661.3,0.00564366]
[1739229533265,3.2078,2661.4,2660.9,0.5709]
[1739229534166,3.2078,2661.4,2661.0,1.1649]
[1739229534364,3.21344366,2661.4,2661.0,1.1649]
[1739229536863,3.21344366,2661.4,2661.0,0.5677]
[1739229537566,3.21344366,2661.4,2661.0,1.1296]
[1739229541269,3.21344366,2661.4,2661.0,0.5677]
[1739229541470,3.21344366,2661.4,2660.9,0.57654366]
[1739229541665,3.21344366,2661.4,2660.9,1.16934366]
[1739229541873,3.21344366,2661.4,2661.0,0.5735]
[1739229546075,3.21344366,2661.4,2660.9,1.16934366]
[1739229550272,3.21344366,2661.4,2660.9,0.57654366]
[1739229550473,3.96474366,2661.4,2660.9,0.00564366]
[1739229550776,3.21344366,2661.4,2660.9,0.00564366]
[1739229556677,3.21344366,2661.4,2660.9,0.59194366]
[1739229557072,3.21344366,2661.4,2661.0,0.5522]
[1739229563880,0.00564366,2661.4,2661.0,0.5522]